bitfinex/quotes_SOLUSD_20250924
["timestamp","ask_amount","ask_price","bid_price","bid_amount"]
[1758684859197,5.59797619,209.57,209.48,5.59797619]
[1758684859370,5.59797619,209.57,209.5,5.59797619]
[1758684859577,31.59797619,209.58,209.51,5.59797619]
[1758684859895,4.77022513,209.64,209.57,5.59797619]
[1758684860068,23.83367306,209.79,209.48,13.59559401]
[1758684860069,5.59797619,209.62,209.54,0.71]
[1758684860272,5.59797619,209.62,209.44,40.58441556]
[1758684860273,5.59797619,209.58,209.51,5.59797619]
[1758684860469,5.59797619,209.55,209.48,5.59797619]
[1758684860674,5.59797619,209.53,209.46,5.59797619]
[1758684860874,5.59797619,209.52,209.45,5.59797619]
[1758684861084,37.92924519,209.57,209.44,5.44463712]
[1758684861085,5.59797619,209.51,209.44,5.59797619]
[1758684861270,38.64924519,209.57,209.47,5.59797619]
[1758684861581,5.59797619,209.48,209.36,52.86]
[1758684861817,26.0,209.5,209.44,5.59797619]
[1758684862008,5.59797619,209.52,209.45,5.59797619]
[1758684862683,10.37100582,209.52,209.45,5.59797619]
[1758684863108,10.37100582,209.52,209.45,10.37234535]
[1758684863311,26.0,209.52,209.46,5.59797619]
[1758684863484,31.59797619,209.52,209.43,0.67]
[1758684863691,5.59797619,209.48,209.41,5.59797619]
[1758684863899,26.0,209.5,209.44,5.59797619]
[1758684864204,31.59797619,209.5,209.43,5.59797619]
[1758684864894,4.77349754,209.49,209.43,5.59797619]
[1758684865715,10.3708515,209.52,209.45,5.59797619]
[1758684865921,5.49287531,209.52,209.43,5.59797619]
[1758684866212,5.59797619,209.48,209.41,5.59797619]
[1758684866593,5.59797619,209.49,209.42,5.59797619]
[1758684866916,17.42491043,209.52,209.42,5.59797619]
[1758684866917,10.37084392,209.52,209.45,10.37235676]
[1758684867089,5.59797619,209.51,209.45,5.59797619]
[1758684867287,5.59797619,209.49,209.42,0.67]
[1758684867492,5.59797619,209.47,209.4,5.59797619]
[1758684867685,5.59797619,209.48,209.41,5.59797619]
[1758684868385,5.59797619,209.48,209.42,5.59797619]
[1758684868583,5.59797619,209.53,209.46,5.59797619]
[1758684869186,10.37058462,209.53,209.46,5.59797619]
[1758684869811,5.59797619,209.52,209.46,5.59797619]
[1758684870013,30.77260843,209.53,209.46,5.59797619]
[1758684870216,28.43915598,209.74,209.45,4.77432271]
[1758684870217,6.31797619,209.6,209.52,5.59797619]
[1758684870404,6.31797619,209.6,209.54,5.59797619]
[1758684870795,5.59797619,209.59,209.53,5.59797619]
[1758684871009,0.72,209.64,209.57,5.59797619]
[1758684871210,4.76962701,209.66,209.57,5.59797619]
[1758684871408,5.59797619,209.64,209.57,5.59797619]
[1758684871611,5.59797619,209.64,209.58,5.59797619]
[1758684872213,5.59797619,209.62,209.55,5.59797619]
[1758684872433,5.59797619,209.61,209.55,5.59797619]
[1758684872719,5.59797619,209.56,209.49,58.37797619]
[1758684873223,4.77213075,209.55,209.49,58.37797619]
[1758684873531,10.37010694,209.55,209.49,52.78]
[1758684873822,10.37010694,209.55,209.48,5.59797619]
[1758684874025,5.49186372,209.57,209.49,5.59797619]
[1758684874224,11.08983991,209.57,209.5,5.59797619]
[1758684874723,5.59797619,209.56,209.49,5.59797619]
[1758684875020,4.77213075,209.55,209.49,5.59797619]
[1758684875227,16.70245764,209.55,209.46,5.59797619]
[1758684875430,5.59797619,209.54,209.47,5.59797619]
[1758684876020,4.77213075,209.55,209.46,5.59797619]
[1758684876021,5.59797619,209.53,209.46,5.59797619]
[1758684876327,4.77213075,209.55,209.47,5.59797619]
[1758684876494,4.77187098,209.57,209.51,5.59797619]
[1758684876694,5.59797619,209.55,209.48,6.26797619]
[1758684877000,4.77213075,209.55,209.47,5.59797619]
[1758684877212,5.59797619,209.54,209.47,5.59797619]
[1758684877427,5.59797619,209.54,209.45,4.77438335]
[1758684877593,5.59797619,209.54,209.48,5.59797619]
[1758684878129,5.59797619,209.5,209.39,0.67]
[1758684878297,5.59797619,209.46,209.39,6.26797619]
[1758684878506,5.59797619,209.47,209.4,5.59797619]
[1758684879225,5.59797619,209.44,209.37,0.67]
[1758684879396,5.59797619,209.43,209.36,5.59797619]
[1758684879590,5.59797619,209.42,209.35,5.59797619]
[1758684879792,5.59797619,209.39,209.31,52.7]
[1758684880013,26.72,209.43,209.31,52.7]
[1758684880014,5.59797619,209.4,209.33,5.59797619]
[1758684880289,5.59797619,209.37,209.29,5.59797619]
[1758684880490,5.59797619,209.34,209.27,0.67]
[1758684880689,26.0,209.4,209.24,0.1]
[1758684880889,5.59797619,209.32,209.25,5.59797619]
[1758684881124,4.77874414,209.26,209.24,0.1]
[1758684881425,5.59797619,209.3,209.24,0.1]
[1758684881623,5.59797619,209.27,209.24,0.1]
[1758684881932,5.59797619,209.28,209.24,0.1]
[1758684882099,6.31797619,209.29,209.24,0.1]
[1758684882492,0.72,209.35,209.25,5.59797619]
[1758684882698,5.59797619,209.33,209.26,5.59797619]
[1758684883000,5.59797619,209.34,209.27,5.59797619]
[1758684883201,13.59559401,209.43,209.24,0.1]
[1758684883202,5.59797619,209.3,209.24,0.1]
[1758684883617,5.59797619,209.29,209.24,0.1]
[1758684885335,23.87786638,209.4,209.24,16.82711932]
[1758684885497,7.81588581,209.52,209.24,16.82711932]
[1758684885498,5.59797619,209.36,209.29,5.59797619]
[1758684885911,5.59797619,209.39,209.32,5.59797619]
[1758684886233,5.59797619,209.4,209.33,5.59797619]
[1758684886741,0.72,209.49,209.39,5.59797619]
[1758684886939,0.72,209.49,209.41,5.59797619]
[1758684887250,6.31797619,209.49,209.42,5.59797619]
[1758684887421,11.09152166,209.49,209.42,10.37301851]
[1758684887628,0.72,209.49,209.43,5.59797619]
[1758684887827,5.59797619,209.45,209.38,5.59797619]
[1758684888441,6.31797619,209.45,209.38,5.59797619]
[1758684888745,5.59797619,209.46,209.39,5.59797619]
[1758684888942,5.59797619,209.46,209.36,4.77646159]
[1758684889148,5.59797619,209.4,209.34,5.59797619]
[1758684889375,10.37357273,209.4,209.34,5.59797619]
[1758684889545,5.59797619,209.4,209.34,10.3748341]
[1758684889853,5.59797619,209.43,209.37,5.59797619]
[1758684890031,10.37288012,209.43,209.37,5.59797619]
[1758684890226,0.72,209.48,209.4,5.59797619]
[1758684890436,11.0918077,209.48,209.41,5.59797619]
[1758684890636,5.59797619,209.47,209.41,5.59797619]
[1758684890944,5.59797619,209.5,209.43,5.59797619]
[1758684891447,5.59797619,209.5,209.44,4.77463712]
[1758684892519,5.59797619,209.5,209.44,5.59797619]
[1758684893023,5.59797619,209.5,209.43,5.59797619]
[1758684893241,5.59797619,209.5,209.44,5.59797619]
[1758684893443,5.59797619,209.5,209.43,5.59797619]
[1758684893840,10.37105767,209.51,209.44,5.59797619]
[1758684894062,5.59797619,209.55,209.48,5.59797619]
[1758684894262,5.59797619,209.54,209.48,5.59797619]
[1758684894566,0.66,209.57,209.47,10.37179921]
[1758684894764,5.59797619,209.54,209.48,5.59797619]
[1758684895841,0.66,209.6,209.52,5.59797619]
[1758684896158,5.59797619,209.59,209.52,5.59797619]
[1758684896534,5.59797619,209.59,209.53,5.59797619]
[1758684896733,5.59797619,209.58,209.52,5.59797619]
[1758684897136,0.66,209.6,209.52,10.37071336]
[1758684897357,5.59797619,209.59,209.52,4.77273717]
[1758684897561,5.59797619,209.59,209.52,10.37071336]
[1758684897861,5.59797619,209.59,209.52,4.77273717]
[1758684898065,0.66,209.65,209.56,5.59797619]
[1758684898257,5.42826244,209.72,209.62,5.59797619]
[1758684898441,5.42826244,209.72,209.59,0.68]
[1758684898442,5.59797619,209.69,209.59,0.68]
[1758684898640,5.59797619,209.69,209.62,5.59797619]
[1758684899147,4.76917207,209.68,209.62,5.59797619]
[1758684899863,6.25797619,209.67,209.57,5.59797619]
[1758684900073,5.59797619,209.63,209.55,0.68]
[1758684900367,5.59797619,209.61,209.5,0.68]
[1758684900543,5.59797619,209.6,209.52,5.59797619]
[1758684900749,0.66,209.66,209.53,0.68]
[1758684900950,0.66,209.66,209.6,5.59797619]
[1758684901150,4.76917207,209.68,209.6,10.36885184]
[1758684901359,0.2,209.76,209.64,5.59797619]
[1758684901542,4.9674091,209.76,209.69,5.59797619]
[1758684901737,10.56538529,209.76,209.69,5.59797619]
[1758684902168,4.9674091,209.76,209.68,5.59797619]
[1758684902358,5.79797619,209.76,209.7,5.59797619]
[1758684902665,5.79797619,209.76,209.61,13.59559401]
[1758684902666,5.59797619,209.74,209.63,0.68]
[1758684902871,5.59797619,209.73,209.67,5.59797619]
[1758684903163,17.54577755,209.76,209.67,5.59797619]
[1758684903364,5.59797619,209.75,209.68,10.36714826]
[1758684903567,5.62739464,209.76,209.69,5.59797619]
[1758684903763,0.2,209.76,209.7,5.59797619]
[1758684903962,4.96737428,209.76,209.7,5.59797619]
[1758684904141,5.59797619,209.74,209.66,4.7694329]
[1758684904352,5.59797619,209.74,209.67,5.59797619]
[1758684904558,6.25797619,209.75,209.67,5.59797619]
[1758684905045,0.66,209.75,209.69,5.59797619]
[1758684905348,0.66,209.75,209.69,10.36682122]
[1758684905658,4.96737428,209.76,209.7,5.59797619]
[1758684905866,5.62737428,209.76,209.63,0.68]
[1758684906049,5.59797619,209.75,209.68,5.59797619]
[1758684906238,5.62737428,209.76,209.73,5.59797619]
[1758684906239,0.2,209.76,209.73,5.59797619]
[1758684906441,0.2,209.76,209.75,5.59797619]
[1758684906655,0.2,209.76,209.75,6.27797619]
[1758684907352,0.2,209.76,209.7,0.68]
[1758684907546,10.56535577,209.76,209.67,5.59797619]
[1758684907746,16.88576249,209.76,209.66,6.27797619]
[1758684907956,5.59797619,209.74,209.66,11.04757592]
[1758684908182,5.59797619,209.72,209.66,0.68]
[1758684908359,5.59797619,209.68,209.61,0.68]
[1758684908760,5.59797619,209.67,209.6,5.59797619]
[1758684908958,5.59797619,209.68,209.6,5.59797619]
[1758684909270,5.59797619,209.67,209.59,5.59797619]
[1758684909470,5.59797619,209.67,209.6,5.59797619]
[1758684909671,5.59797619,209.68,209.6,5.59797619]
[1758684909976,5.59797619,209.67,209.6,5.59797619]
[1758684910172,6.25797619,209.67,209.59,5.59797619]
[1758684910960,5.59797619,209.67,209.6,5.59797619]
[1758684911486,26.0,209.73,209.63,5.59797619]
[1758684911653,5.59797619,209.72,209.64,5.59797619]
[1758684911978,5.59797619,209.71,209.64,5.59797619]
[1758684912279,5.59797619,209.67,209.6,5.59797619]
[1758684912453,0.66,209.7,209.6,5.59797619]
[1758684912779,5.59797619,209.68,209.6,5.59797619]
[1758684913080,5.59797619,209.69,209.61,5.59797619]
[1758684913274,5.59797619,209.68,209.61,5.59797619]
[1758684913448,0.66,209.7,209.63,5.59797619]
[1758684913654,4.76780776,209.74,209.67,5.59797619]
[1758684913852,4.76780776,209.74,209.68,5.59797619]
[1758684914079,5.59797619,209.72,209.65,5.59797619]
[1758684914283,5.59797619,209.7,209.63,5.59797619]
[1758684914458,5.59797619,209.68,209.61,5.59797619]
[1758684914659,5.59797619,209.68,209.6,0.68]
[1758684914861,5.59797619,209.69,209.62,5.59797619]
[1758684915070,5.59797619,209.7,209.62,5.59797619]
[1758684915775,4.76894463,209.69,209.62,5.59797619]
[1758684916288,10.36692082,209.69,209.62,5.59797619]
[1758684916462,22.2892824,209.69,209.62,5.59797619]
[1758684916663,22.2892824,209.69,209.57,52.24]
[1758684916664,3.64707129,209.66,209.59,3.64707129]
[1758684916860,3.64707129,209.68,209.6,3.64707129]
[1758684917184,5.48894463,209.69,209.63,3.64707129]
[1758684917380,4.76894463,209.69,209.63,3.64707129]
[1758684917581,4.76871721,209.7,209.63,8.4173126]
[1758684917876,5.48847533,209.72,209.65,3.64707129]
[1758684918259,5.68753424,209.76,209.69,3.64707129]
[1758684918552,0.2,209.76,209.71,3.64707129]
[1758684918782,0.2,209.76,209.74,3.64707129]
[1758684919279,4.96738206,209.76,209.71,3.64707129]
[1758684919469,4.96738206,209.76,209.72,3.64707129]
[1758684919470,0.2,209.76,209.72,3.64707129]
[1758684919671,0.2,209.76,209.72,8.41532669]
[1758684919872,0.2,209.76,209.7,3.64707129]
[1758684920066,4.9674065,209.76,209.7,3.64707129]
[1758684920262,4.9674065,209.76,209.71,3.64707129]
[1758684920767,4.32707129,209.75,209.68,3.64707129]
[1758684921081,8.61447779,209.76,209.69,3.64707129]
[1758684921275,0.2,209.76,209.71,3.64707129]
[1758684921680,0.2,209.76,209.72,3.64707129]
[1758684921855,4.96736595,209.76,209.72,3.64707129]
[1758684922059,0.2,209.76,209.71,3.64707129]
[1758684922458,0.68,209.75,209.65,0.72]
[1758684922659,4.32707129,209.75,209.65,0.72]
[1758684922860,4.32707129,209.75,209.67,3.64707129]
[1758684923085,3.64707129,209.74,209.67,3.64707129]
[1758684923282,4.32707129,209.75,209.68,3.64707129]
[1758684923786,4.76780776,209.74,209.68,3.64707129]
[1758684923957,8.41487905,209.74,209.68,3.64707129]
[1758684924381,3.64707129,209.71,209.64,52.14]
[1758684924574,3.64707129,209.71,209.64,55.78707129]
[1758684924778,3.64707129,209.69,209.64,52.14]
[1758684924988,0.68,209.68,209.64,52.14]
[1758684925280,16.68732716,209.74,209.58,3.64707129]
[1758684925281,3.64707129,209.65,209.58,3.64707129]
[1758684925583,3.64707129,209.63,209.57,4.36707129]
[1758684925785,4.77053716,209.62,209.56,3.64707129]
[1758684926486,16.69688006,209.62,209.53,0.72]
[1758684926689,16.69688006,209.62,209.49,0.72]
[1758684926690,3.64707129,209.57,209.49,0.72]
[1758684926875,3.64707129,209.56,209.49,4.36707129]
[1758684927389,3.64707129,209.55,209.49,0.72]
[1758684927689,8.41936919,209.55,209.48,8.42077037]
[1758684928194,11.92875604,209.58,209.51,3.64707129]
[1758684928195,3.64707129,209.58,209.51,3.64707129]
[1758684928373,3.64707129,209.56,209.5,3.64707129]
[1758684928571,3.64707129,209.56,209.49,4.36707129]
[1758684928783,3.64707129,209.53,209.47,3.64707129]
[1758684929091,3.64707129,209.54,209.48,3.64707129]
[1758684929588,3.64707129,209.54,209.47,3.64707129]
[1758684929776,8.41965755,209.53,209.46,3.64707129]
[1758684929975,4.77258626,209.53,209.47,3.64707129]
[1758684930477,4.77258626,209.53,209.48,3.64707129]
[1758684931378,4.77258626,209.53,209.47,3.64707129]
[1758684932011,8.41965755,209.53,209.45,0.72]
[1758684932176,3.64707129,209.52,209.43,52.02]
[1758684932372,3.64707129,209.51,209.44,3.64707129]
[1758684932795,4.32707129,209.52,209.45,3.64707129]
[1758684932979,4.32707129,209.52,209.44,3.64707129]
[1758684933179,4.32707129,209.52,209.43,56.79482957]
[1758684933383,4.77304185,209.51,209.44,3.64707129]
[1758684933886,4.77304185,209.51,209.41,0.72]
[1758684933887,3.64707129,209.49,209.41,9.14234211]
[1758684934695,3.64707129,209.49,209.42,3.64707129]
[1758684935009,26.0,209.58,209.41,5.49527082]
[1758684935010,4.32707129,209.55,209.43,0.72]
[1758684935179,0.68,209.55,209.48,3.64707129]
[1758684935387,4.32707129,209.55,209.48,3.64707129]
[1758684935800,3.64707129,209.54,209.47,8.42098882]
[1758684936185,0.68,209.55,209.45,3.64707129]
[1758684936186,3.64707129,209.52,209.45,3.64707129]
[1758684936500,3.64707129,209.51,209.45,3.64707129]
[1758684938088,3.64707129,209.47,209.39,0.72]
[1758684938280,3.64707129,209.46,209.4,3.64707129]
[1758684938484,3.64707129,209.47,209.39,0.72]
[1758684938683,3.64707129,209.48,209.41,3.64707129]
[1758684938882,23.85888037,209.57,209.39,0.72]
[1758684938883,23.85423518,209.61,209.47,3.64707129]
[1758684939090,3.64707129,209.55,209.48,3.64707129]
[1758684939284,3.64707129,209.54,209.47,3.64707129]
[1758684939483,3.64707129,209.5,209.43,3.64707129]
[1758684939704,3.64707129,209.48,209.42,3.64707129]
[1758684939903,3.64707129,209.49,209.42,3.64707129]
[1758684940412,3.64707129,209.5,209.43,3.64707129]
[1758684940809,3.64707129,209.56,209.49,3.64707129]
[1758684941182,3.64707129,209.54,209.48,3.64707129]
[1758684941390,0.68,209.57,209.48,3.64707129]
[1758684941586,3.64707129,209.59,209.52,3.64707129]
[1758684942484,3.64707129,209.59,209.53,3.64707129]
[1758684942711,8.41849329,209.59,209.52,8.4197955]
[1758684943012,3.64707129,209.58,209.52,8.4197955]
[1758684943616,4.32707129,209.64,209.57,3.64707129]
[1758684943907,3.64707129,209.64,209.58,3.64707129]
[1758684944090,3.64707129,209.6,209.54,0.72]
[1758684944296,3.64707129,209.65,209.58,3.64707129]
[1758684944487,13.59559401,209.58,209.37,0.72]
[1758684944687,13.59559401,209.58,209.27,0.72]
[1758684944688,3.64707129,209.38,209.27,0.72]
[1758684944888,3.64707129,209.3,209.26,0.1]
[1758684945212,3.64707129,209.35,209.27,3.64707129]
[1758684945394,3.64707129,209.33,209.26,8.52579616]
[1758684945594,3.64707129,209.34,209.27,3.64707129]
[1758684945796,0.68,209.41,209.29,3.64707129]
[1758684945988,0.68,209.46,209.35,3.64707129]
[1758684946309,3.64707129,209.44,209.35,3.64707129]
[1758684946489,3.64707129,209.44,209.36,0.72]
[1758684946684,3.64707129,209.43,209.37,4.77623346]
[1758684946885,0.68,209.45,209.35,3.64707129]
[1758684947086,3.64707129,209.36,209.26,0.1]
[1758684947301,3.64707129,209.27,209.26,0.1]
[1758684947688,4.32707129,209.27,209.26,0.1]
[1758684947886,26.0,209.24,209.09,0.72]
[1758684948093,3.64707129,209.14,209.09,0.72]
[1758684948418,3.64707129,209.14,209.1,0.72]
[1758684948710,3.64707129,209.14,209.08,11.95714559]
[1758684948912,3.64707129,209.14,209.1,0.72]
[1758684949113,4.32707129,209.25,209.11,0.72]
[1758684949433,3.64707129,209.14,209.11,0.72]
[1758684949593,3.64707129,209.14,209.08,12.67714559]
[1758684950716,3.64707129,209.14,209.08,5.5026351]
[1758684951116,0.68,209.18,209.08,5.5026351]
[1758684951312,5.46063084,209.18,209.08,5.5026351]
[1758684951503,3.64707129,209.15,209.08,5.5026351]
[1758684952217,3.64707129,209.13,209.05,4.78339337]
[1758684952398,3.64707129,209.12,209.05,4.78339337]
[1758684953624,3.64707129,209.12,209.05,16.74225488]
[1758684953996,3.64707129,209.13,209.05,20.38932617]
[1758684954222,3.64707129,209.13,209.06,3.64707129]
[1758684954431,3.64707129,209.17,209.09,3.64707129]
[1758684954723,3.64707129,209.16,209.09,3.64707129]
[1758684954901,3.64707129,209.16,209.1,4.78240076]
[1758684955427,3.64707129,209.16,209.03,51.66]
[1758684955428,26.0,209.13,208.99,3.64707129]
[1758684955629,3.64707129,209.08,208.99,3.64707129]
[1758684955829,26.0,209.13,208.99,3.64707129]
[1758684955830,3.64707129,209.06,208.99,3.64707129]
[1758684956137,0.66,209.13,209.03,3.64707129]
[1758684956431,3.64707129,209.14,209.05,3.64707129]
[1758684956606,3.64707129,209.14,209.06,0.68]
[1758684957030,3.64707129,209.14,209.07,4.783087]
[1758684957331,3.64707129,209.15,209.07,8.43015829]
[1758684957528,0.66,209.22,209.12,3.64707129]
[1758684957702,0.66,209.22,209.15,3.64707129]
[1758684958224,3.64707129,209.21,209.14,3.64707129]
[1758684958424,0.66,209.22,209.14,3.64707129]
[1758684958620,3.64707129,209.25,209.16,16.73360106]
[1758684958821,3.64707129,209.26,209.19,3.64707129]
[1758684959123,31.43852145,209.27,209.16,16.73360106]
[1758684959124,4.30707129,209.27,209.2,3.64707129]
[1758684959328,3.64707129,209.23,209.14,4.78130411]
[1758684959533,3.64707129,209.23,209.16,3.64707129]
[1758684959735,3.64707129,209.28,209.21,3.64707129]
[1758684959910,3.64707129,209.28,209.17,0.68]
[1758684960109,3.64707129,209.28,209.21,3.64707129]
[1758684960607,0.66,209.27,209.2,3.64707129]
[1758684960812,3.64707129,209.26,209.18,4.32707129]
[1758684961014,3.64707129,209.24,209.13,0.68]
[1758684961210,3.64707129,209.21,209.13,4.32707129]
[1758684962030,3.64707129,209.21,209.14,4.78148608]
[1758684962335,0.66,209.25,209.15,3.64707129]
[1758684962517,3.64707129,209.25,209.17,3.64707129]
[1758684963834,4.77920091,209.24,209.17,8.42786169]
[1758684964311,3.64707129,209.22,209.11,26.23087515]
[1758684964511,5.43920091,209.24,209.1,51.56]
[1758684964512,3.64707129,209.18,209.1,51.56]
[1758684964729,3.64707129,209.17,209.1,51.56]
[1758684964919,3.64707129,209.17,209.1,56.34235609]
[1758684965629,3.64707129,209.17,209.1,51.56]
[1758684966131,4.78078415,209.18,209.1,51.56]
[1758684966509,3.64707129,209.16,209.1,51.56]
[1758684966709,3.64707129,209.12,209.03,0.68]
[1758684967009,0.66,209.15,209.06,3.64707129]
[1758684967209,3.64707129,209.12,209.05,3.64707129]
[1758684967426,3.64707129,209.1,209.03,3.64707129]
[1758684967812,3.64707129,209.11,209.05,4.7835446]
[1758684968012,3.64707129,209.11,209.0,1.0]
[1758684968216,3.64707129,209.09,209.0,4.64707129]
[1758684968416,3.64707129,209.06,209.0,1.0]
[1758684968716,3.64707129,209.1,209.03,3.64707129]
[1758684968920,4.78194338,209.12,209.0,5.78466564]
[1758684968921,3.64707129,209.13,209.04,0.68]
[1758684969139,8.42886526,209.13,209.06,3.64707129]
[1758684969345,3.64707129,209.11,209.04,4.32707129]
[1758684969553,0.66,209.14,209.06,3.64707129]
[1758684969723,9.08859321,209.14,209.04,0.68]
[1758684969925,8.428814,209.13,209.05,4.7835446]
[1758684970417,0.66,209.14,209.08,3.64707129]
[1758684970617,4.30707129,209.18,209.1,3.64707129]
[1758684970822,3.64707129,209.17,209.1,3.64707129]
[1758684971035,3.64707129,209.16,209.09,3.64707129]
[1758684971410,4.78021594,209.2,209.13,3.64707129]
[1758684971610,0.66,209.21,209.14,3.64707129]
[1758684971611,4.30707129,209.21,209.14,3.64707129]
[1758684971844,5.43993879,209.21,209.15,3.64707129]
[1758684972023,9.08701008,209.21,209.14,8.42848058]
[1758684972420,3.64707129,209.19,209.11,3.64707129]
[1758684972952,26.0,209.22,209.12,4.35707129]
[1758684973154,16.71921276,209.34,209.17,3.64707129]
[1758684973453,4.35707129,209.28,209.2,3.64707129]
[1758684973914,0.71,209.33,209.25,3.64707129]
[1758684974114,4.35707129,209.38,209.29,3.64707129]
[1758684974309,4.77463712,209.44,209.22,68.02880221]
[1758684974310,4.35707129,209.42,209.36,3.64707129]
[1758684974543,3.64707129,209.39,209.3,0.71]
[1758684974847,3.64707129,209.36,209.29,3.64707129]
[1758684975028,3.64707129,209.33,209.26,3.64707129]
[1758684975227,3.64707129,209.31,209.24,3.64707129]
[1758684975552,26.0,209.37,209.22,4.77965777]
[1758684975553,3.64707129,209.29,209.23,3.64707129]
[1758684975767,0.71,209.32,209.23,3.64707129]
[1758684975921,3.64707129,209.31,209.21,51.28]
[1758684976260,3.64707129,209.27,209.21,51.28]
[1758684976560,0.71,209.28,209.2,5.61013435]
[1758684976719,5.61013435,209.31,209.24,5.61013435]
[1758684976918,6.32013435,209.33,209.26,5.61013435]
[1758684977235,5.61013435,209.3,209.24,5.61013435]
[1758684977429,5.61013435,209.28,209.21,5.61013435]
[1758684977816,5.61013435,209.25,209.18,4.78042851]
[1758684978155,5.61013435,209.23,209.17,5.61013435]
[1758684979024,5.61013435,209.2,209.14,51.95]
[1758684979218,5.61013435,209.21,209.14,57.56013435]
[1758684979419,0.71,209.23,209.14,51.95]
[1758684979735,5.61013435,209.19,209.14,51.24]
[1758684980039,30.77932012,209.24,209.16,5.61013435]
[1758684980215,5.61013435,209.22,209.16,5.61013435]
[1758684980417,0.71,209.27,209.18,5.61013435]
[1758684980617,5.61013435,209.25,209.18,0.72]
[1758684980834,5.61013435,209.25,209.19,5.61013435]
[1758684981021,13.59559401,209.36,209.2,5.61013435]
[1758684981227,5.61013435,209.27,209.2,5.61013435]
[1758684981641,5.61013435,209.27,209.18,0.72]
[1758684981851,10.38810576,209.3,209.24,5.61013435]
[1758684982148,10.38810576,209.3,209.22,4.77950972]
[1758684982349,5.61013435,209.29,209.23,5.61013435]
[1758684982546,5.61013435,209.26,209.2,5.61013435]
[1758684982843,5.61013435,209.25,209.19,5.61013435]
[1758684983364,5.61013435,209.23,209.16,0.72]
[1758684983644,5.61013435,209.21,209.14,5.61013435]
[1758684983848,5.61013435,209.21,209.15,5.61013435]
[1758684984159,4.77987584,209.22,209.15,5.61013435]
[1758684984448,5.61013435,209.19,209.13,6.33013435]
[1758684984638,5.61013435,209.18,209.12,5.61013435]
[1758684984824,0.71,209.21,209.11,10.39220502]
[1758684984825,5.61013435,209.17,209.11,10.39220502]
[1758684985031,5.61013435,209.18,209.11,5.61013435]
[1758684985340,5.61013435,209.15,209.09,10.39264081]
[1758684985530,0.71,209.21,209.11,5.61013435]
[1758684985718,5.61013435,209.16,209.09,5.50250646]
[1758684986050,5.61013435,209.17,209.11,5.61013435]
[1758684986549,5.61013435,209.16,209.1,5.61013435]
[1758684986714,4.78077037,209.18,209.08,51.08]
[1758684986715,5.49077037,209.18,209.08,51.08]
[1758684986921,5.61013435,209.15,209.09,5.61013435]
[1758684987245,5.61013435,209.1,209.03,0.72]
[1758684987421,5.61013435,209.07,209.0,5.78467556]
[1758684987746,5.61013435,209.03,209.0,1.0]
[1758684987937,0.71,209.06,209.0,1.0]
[1758684987938,10.39459442,209.01,209.0,1.0]
[1758684988141,10.39459442,209.01,208.87,51.74]
[1758684988342,10.39459442,209.01,208.88,10.39753907]
[1758684988343,31.61013435,209.0,208.88,10.39753907]
[1758684988541,4.78420786,209.03,208.95,4.7858057]
[1758684988742,4.78345473,209.06,208.91,0.72]
[1758684988942,5.61013435,209.0,208.91,0.72]
[1758684989155,43.09174421,209.06,208.89,11.96765572]
[1758684989457,5.61013435,209.0,208.93,6.33013435]
[1758684989853,5.61013435,209.0,208.93,0.72]
[1758684990053,10.39482334,209.0,208.93,0.72]
[1758684990358,5.61013435,209.0,208.93,6.33013435]
[1758684990557,5.61013435,209.03,208.97,5.61013435]
[1758684990754,5.61013435,209.03,208.99,0.82]
[1758684991159,4.78338374,209.06,208.99,0.82]
[1758684991160,5.61013435,209.02,208.99,0.1]
[1758684991369,4.78338374,209.06,208.99,0.1]
[1758684991669,5.61013435,209.02,208.99,0.1]
[1758684992166,5.61013435,209.05,209.0,0.72]
[1758684992354,5.61013435,209.11,209.04,5.61013435]
[1758684992545,5.61013435,209.11,209.05,6.33013435]
[1758684992973,3.02970071,209.19,209.06,0.72]
[1758684993145,5.61013435,209.19,209.12,5.61013435]
[1758684993331,5.61013435,209.19,209.07,13.59559401]
[1758684993332,5.61013435,209.2,209.14,5.61013435]
[1758684993534,5.61013435,209.19,209.13,6.33013435]
[1758684993756,5.61013435,209.18,209.13,0.72]
[1758684994831,5.61013435,209.14,209.05,0.72]
[1758684995057,27.54771543,209.17,209.05,0.72]
[1758684995058,5.61013435,209.11,209.05,6.33013435]
[1758684995252,5.61013435,209.08,209.02,5.61013435]
[1758684995668,5.61013435,209.12,209.05,5.61013435]
[1758684995964,5.61013435,209.13,209.06,6.33013435]
[1758684996165,5.61013435,209.13,209.0,4.78468899]
[1758684996166,5.61013435,209.09,209.03,5.61013435]
[1758684996354,4.78179938,209.13,209.02,11.11417116]